bitfinex/quotes_SOLUSD_20241210
["timestamp","ask_amount","ask_price","bid_price","bid_amount"]
[1733789850282,37.04130294,215.94,215.88,0.12549]
[1733789850483,37.04130294,215.9,215.84,0.12549]
[1733789851084,37.04130294,215.9,215.84,0.25098]
[1733789851821,37.04130294,215.88,215.82,0.12549]
[1733789852128,37.04130294,215.93,215.88,0.12549]
[1733789852283,37.04130294,215.91,215.84,0.12549]
[1733789852619,37.04130294,215.89,215.82,0.12549]
[1733789852813,37.04130294,215.87,215.81,0.12549]
[1733789853014,37.04130294,215.87,215.79,43.59220294]
[1733789853385,37.04130294,215.89,215.81,37.04130294]
[1733789853790,37.04130294,215.89,215.82,0.12549]
[1733789854190,37.04130294,215.88,215.81,37.04130294]
[1733789854397,37.04130294,215.84,215.76,37.04130294]
[1733789854729,37.04130294,215.84,215.73,6.5509]
[1733789854730,1.1576,215.96,215.81,37.16679294]
[1733789854921,0.12549,216.0,215.83,0.12549]
[1733789855212,1.1574,216.01,215.85,0.12549]
[1733789855525,37.04130294,215.98,215.92,0.12549]
[1733789855700,37.04130294,216.0,215.92,0.12549]
[1733789855907,37.04130294,216.02,215.97,0.12549]
[1733789856208,37.04130294,215.98,215.91,0.12549]
[1733789856402,37.04130294,216.01,215.95,0.12549]
[1733789856623,37.04130294,216.02,215.95,0.25098]
[1733789856826,37.04130294,216.04,215.97,0.12549]
[1733789857000,37.04130294,216.02,215.95,0.12549]
[1733789857198,37.04130294,215.98,215.9,43.59220294]
[1733789857504,37.04130294,215.97,215.91,0.25098]
[1733789857705,37.04130294,215.99,215.91,0.25098]
[1733789857926,37.04130294,215.94,215.87,37.04130294]
[1733789858230,37.04130294,215.98,215.92,0.12549]
[1733789858608,1.157,216.07,215.94,0.12549]
[1733789858609,37.04130294,216.0,215.94,0.12549]
[1733789858998,37.04130294,216.04,215.96,0.12549]
[1733789859392,37.04130294,216.06,215.98,0.12549]
[1733789859725,37.04130294,216.06,215.97,37.04130294]
[1733789859726,37.04130294,216.08,216.0,0.25098]
[1733789859928,37.04130294,216.12,216.04,0.25098]
[1733789860144,2.1016491,216.17,216.01,0.69427082]
[1733789860145,37.04130294,216.1,216.02,0.12549]
[1733789860297,37.04130294,216.1,216.04,0.12549]
[1733789860492,37.04130294,216.1,216.04,0.25098]
[1733789860808,37.04130294,216.12,216.06,0.12549]
[1733789861332,37.04130294,216.12,216.05,0.25098]
[1733789861648,37.04130294,216.12,216.05,0.12549]
[1733789861999,37.04130294,216.12,216.05,37.16679294]
[1733789862238,37.04130294,216.16,216.1,0.25098]
[1733789862643,0.5629491,216.17,216.12,0.25098]
[1733789862939,0.5629491,216.17,216.14,0.25098]
[1733789863799,0.5629491,216.17,216.12,0.25098]
[1733789864927,37.04130294,216.14,216.07,37.73517116]
[1733789865100,0.5629491,216.17,216.11,0.25098]
[1733789865638,0.5629491,216.17,216.14,0.12549]
[1733789866327,0.5629491,216.17,216.11,37.04130294]
[1733789866555,0.5629491,216.17,216.11,0.12549]
[1733789866702,0.5629491,216.17,216.13,0.25098]
[1733789867302,0.5629491,216.17,216.13,37.04130294]
[1733789867511,0.5629491,216.17,216.16,0.25098]
[1733789867722,0.5629491,216.17,216.16,37.98610178]
[1733789868027,0.5629491,216.17,216.16,37.29228294]
[1733789868799,0.5629491,216.17,216.16,0.12549]
[1733789868997,0.5629491,216.17,216.16,0.25098]
[1733789869203,0.5629491,216.17,216.16,37.29228294]
[1733789870025,0.5629491,216.17,216.16,43.35638294]
[1733789872605,0.5629491,216.17,216.16,6.18959]
[1733789873043,0.5629491,216.17,216.16,356.0501199]
[1733789873222,0.5629491,216.17,216.16,355.35638294]
[1733789874842,0.5629491,216.17,216.16,379.13326694]
[1733789874843,4.91e-05,216.17,216.16,379.13326694]
[1733789875331,0.5629491,216.39,216.22,0.25098]
[1733789875332,37.04130294,216.33,216.22,0.25098]
[1733789875504,37.04130294,216.35,216.29,0.25098]
[1733789875710,37.04130294,216.37,216.3,37.04130294]
[1733789876104,0.5629491,216.39,216.23,20.69343621]
[1733789876105,37.60425204,216.39,216.32,37.04130294]
[1733789876304,0.5629491,216.39,216.34,37.04130294]
[1733789876726,0.5629491,216.39,216.35,37.29228294]
[1733789876924,0.5629491,216.39,216.36,0.12549]
[1733789877322,0.5629491,216.39,216.38,37.29228294]
[1733789878040,0.5629491,216.39,216.38,0.12549]
[1733789878426,0.5629491,216.39,216.38,312.25098]
[1733789878744,37.60425204,216.39,216.32,37.04130294]
[1733789879051,37.04130294,216.36,216.28,37.73450762]
[1733789879341,37.04130294,216.36,216.29,0.12549]
[1733789879519,37.04130294,216.35,216.29,0.12549]
[1733789879833,37.04130294,216.35,216.28,37.04130294]
[1733789880036,37.04130294,216.35,216.25,6.0641]
[1733789880037,37.04130294,216.32,216.25,6.0641]
[1733789880337,37.04130294,216.35,216.28,37.04130294]
[1733789880524,37.04130294,216.38,216.32,0.12549]
[1733789880715,0.5629491,216.39,216.34,0.12549]
[1733789881120,0.5629491,216.39,216.36,0.12549]
[1733789881853,0.5629491,216.39,216.36,0.25098]
[1733789882146,0.5629491,216.39,216.38,0.25098]
[1733789882652,0.5629491,216.39,216.36,0.12549]
[1733789883251,37.04130294,216.37,216.3,37.04130294]
[1733789883452,37.04130294,216.35,216.27,37.04130294]
[1733789883658,37.04130294,216.31,216.23,37.04130294]
[1733789883957,37.04130294,216.29,216.2,37.04130294]
[1733789884165,37.04130294,216.28,216.2,37.04130294]
[1733789884323,37.04130294,216.26,216.2,37.04130294]
[1733789884526,37.04130294,216.37,216.23,37.04130294]
[1733789884527,37.04130294,216.31,216.23,37.04130294]
[1733789884737,37.04130294,216.31,216.26,0.12549]
[1733789884936,37.04130294,216.35,216.28,0.12549]
[1733789885325,0.5629491,216.39,216.34,0.25098]
[1733789885923,0.5629491,216.39,216.38,0.12549]
[1733789886241,0.5629491,216.39,216.38,37.29228294]
[1733789887323,0.5629491,216.39,216.38,0.12549]
[1733789887726,0.5629491,216.39,216.38,37.29228294]
[1733789888455,0.5629491,216.39,216.38,0.25098]
[1733789888960,0.5629491,216.39,216.38,312.25098]
[1733789889266,37.04130294,216.55,216.42,20.25098]
[1733789889445,37.04130294,216.47,216.3,1.5197]
[1733789889760,1.1543,216.57,216.42,37.04130294]
[1733789890154,37.04130294,216.5,216.42,37.04130294]
[1733789890664,37.04130294,216.54,216.47,0.25098]
[1733789890838,37.04130294,216.52,216.47,0.12549]
[1733789891038,1.6318,216.58,216.47,0.12549]
[1733789891039,37.04130294,216.54,216.47,0.12549]
[1733789891268,37.04130294,216.54,216.47,0.25098]
[1733789891460,37.04130294,216.52,216.47,0.12549]
[1733789891631,1.6318,216.58,216.47,0.12549]
[1733789891632,37.04130294,216.54,216.47,0.12549]
[1733789892074,37.04130294,216.54,216.47,0.25098]
[1733789892405,37.04130294,216.56,216.49,0.12549]
[1733789892671,37.04130294,216.56,216.49,0.25098]
[1733789892833,37.04130294,216.56,216.51,20.12549]
[1733789893037,37.04130294,216.59,216.53,0.12549]
[1733789893335,37.04130294,216.57,216.37,13.594]
[1733789893645,37.04130294,216.5,216.42,57.04130294]
[1733789894050,1.1543,216.58,216.42,57.04130294]
[1733789894051,37.04130294,216.52,216.44,37.04130294]
[1733789894647,1.1543,216.58,216.44,37.04130294]
[1733789894648,37.04130294,216.54,216.46,37.04130294]
[1733789894866,37.04130294,216.56,216.48,37.04130294]
[1733789895078,37.04130294,216.6,216.53,0.12549]
[1733789895265,37.04130294,216.6,216.53,0.25098]
[1733789895973,37.04130294,216.6,216.55,312.0]
[1733789896173,37.04130294,216.58,216.55,312.0]
[1733789896379,37.04130294,216.58,216.51,20.0]
[1733789896678,0.5629491,216.61,216.56,0.12549]
[1733789896864,0.5629491,216.61,216.52,6.88651948]
[1733789896865,0.5629491,216.61,216.58,0.12549]
[1733789897669,0.5629491,216.61,216.58,0.25098]
[1733789898448,0.5629491,216.61,216.56,0.12549]
[1733789898646,0.5629491,216.61,216.58,0.12549]
[1733789898873,0.5629491,216.61,216.55,57.04130294]
[1733789899249,0.5629491,216.61,216.6,0.12549]
[1733789900161,0.5629491,216.61,216.6,0.25098]
[1733789901079,0.5629491,216.61,216.6,37.29228294]
[1733789902482,37.04130294,216.75,216.65,0.12549]
[1733789902686,37.04130294,216.75,216.69,0.25098]
[1733789902859,37.04130294,216.72,216.69,0.12549]
[1733789903181,37.04130294,216.73,216.69,0.12549]
[1733789903551,37.04130294,216.71,216.69,0.12549]
[1733789903775,38.19440294,216.81,216.63,0.12549]
[1733789903776,37.04130294,216.7,216.63,0.12549]
[1733789903977,37.04130294,216.69,216.62,37.04130294]
[1733789904274,37.04130294,216.68,216.6,37.73353368]
[1733789904677,37.04130294,216.7,216.58,0.27704]
[1733789904879,37.04130294,216.6,216.58,0.27704]
[1733789905189,11.5039,216.69,216.58,0.27704]
[1733789905190,37.04130294,216.59,216.58,0.27704]
[1733789905396,74.08260588,216.59,216.58,0.27704]
[1733789905951,37.04130294,216.59,216.58,0.27704]
[1733789906148,37.04130294,216.61,216.58,0.27704]
[1733789906449,17.9835,216.69,216.58,0.27704]
[1733789906450,37.04130294,216.62,216.58,0.27704]
[1733789906654,37.04130294,216.59,216.58,0.27704]
[1733789907277,37.04130294,216.6,216.58,0.27704]
[1733789907781,37.04130294,216.59,216.58,0.27704]
[1733789907987,37.04130294,216.6,216.58,0.27704]
[1733789909354,37.04130294,216.61,216.58,0.27704]
[1733789909954,1.1537,216.68,216.58,0.27704]
[1733789909955,37.04130294,216.59,216.58,0.27704]
[1733789910371,23.776884,216.67,216.58,0.27704]
[1733789910372,37.04130294,216.6,216.58,0.27704]
[1733789910583,37.04130294,216.67,216.59,37.29228294]
[1733789910889,8.065,216.76,216.65,0.12549]
[1733789911053,37.04130294,216.81,216.65,0.12549]
[1733789911262,37.04130294,216.81,216.64,0.12549]
[1733789911955,37.04130294,216.72,216.66,0.25098]
[1733789912158,37.04130294,216.81,216.66,0.25098]
[1733789912159,37.04130294,216.71,216.66,0.25098]
[1733789912459,37.04130294,216.71,216.65,0.25098]
[1733789912659,37.04130294,216.72,216.65,37.16679294]
[1733789912893,37.04130294,216.72,216.66,0.12549]
[1733789913275,37.04130294,216.72,216.66,0.25098]
[1733789913788,37.04130294,216.75,216.71,312.0]
[1733789913971,37.04130294,216.75,216.72,0.12549]
[1733789914287,37.04130294,216.8,216.72,57.98430618]
[1733789914588,37.04130294,216.81,216.74,37.04130294]
[1733789914789,0.5629491,216.82,216.77,0.25098]
[1733789914973,0.5629491,216.82,216.8,0.12549]
[1733789915180,0.5629491,216.82,216.81,37.29228294]
[1733789916898,0.5629491,216.82,216.81,74.33358588]
[1733789916899,4.91e-05,216.82,216.81,74.33358588]
[1733789917195,38.19320294,217.03,216.81,74.33358588]
[1733789917196,0.5629491,217.04,216.89,0.12549]
[1733789917487,0.5629491,217.04,216.98,37.04130294]
[1733789917690,0.5629491,217.04,216.99,0.81659034]
[1733789917993,0.5629491,217.04,217.0,37.04130294]
[1733789918172,0.5629491,217.04,217.01,0.81654186]
[1733789918372,18.065,217.17,217.02,37.04130294]
[1733789918373,37.04130294,217.1,217.02,37.04130294]
[1733789918575,8.065,217.17,217.03,0.69102561]
[1733789918576,0.2530437,217.04,217.03,0.69102561]
[1733789918774,0.2530437,217.04,217.03,20.94200561]
[1733789918965,0.5738264,217.14,217.03,20.94200561]
[1733789918966,0.5738264,217.14,217.05,10.0]
[1733789919166,0.5738264,217.14,217.13,37.16679294]
[1733789919389,0.5738264,217.14,217.13,37.29228294]
[1733789920773,0.5738264,217.14,217.13,349.29228294]
[1733789922444,2.64e-05,217.14,217.13,410.11046988]
[1733789922572,2.64e-05,217.14,217.13,420.11046988]
[1733789922776,37.04130294,217.3,217.18,0.12549]
[1733789922977,37.04130294,217.34,217.26,37.04130294]
[1733789923173,37.04130294,217.34,217.27,0.12549]
[1733789923372,37.61512934,217.36,217.28,37.04130294]
[1733789923599,37.61512934,217.36,217.29,0.12549]
[1733789923905,0.5738264,217.36,217.34,37.04130294]
[1733789924282,0.5738264,217.36,217.28,0.69011903]
[1733789924283,0.5738264,217.36,217.33,0.12549]
[1733789924796,37.04130294,217.34,217.22,37.04130294]
[1733789925099,0.5738264,217.36,217.24,37.04130294]
[1733789925268,0.5738264,217.36,217.18,0.69023065]
[1733789925472,20.5738264,217.36,217.18,0.69023065]
[1733789925672,37.04130294,217.28,217.2,37.04130294]
[1733789925986,37.04130294,217.28,217.24,312.0]
[1733789926193,37.04130294,217.32,217.24,349.04130294]
[1733789926393,37.04130294,217.32,217.24,37.04130294]
[1733789926593,37.04130294,217.34,217.28,0.12549]
[1733789926922,37.61512934,217.36,217.3,0.12549]
[1733789927418,37.61512934,217.36,217.28,0.12549]
[1733789927600,37.04130294,217.3,217.21,37.04130294]
[1733789927917,37.04130294,217.25,217.17,37.04130294]
[1733789928077,37.04130294,217.19,217.11,37.04130294]
[1733789928277,37.04130294,217.17,217.09,38.93350871]
[1733789928616,37.04130294,217.17,217.1,0.12549]
[1733789928786,37.04130294,217.17,217.09,37.73200762]
[1733789928979,37.04130294,217.17,217.09,37.04130294]
[1733789929187,37.04130294,217.13,217.05,37.04130294]
[1733789929410,37.04130294,217.1,217.05,312.0]
[1733789929615,37.04130294,217.09,217.05,312.0]
[1733789929950,37.04130294,217.1,217.05,312.0]
[1733789930082,37.04130294,217.09,217.05,312.0]
[1733789930284,37.04130294,217.07,216.99,37.04130294]
[1733789930509,37.04130294,217.08,217.01,37.04130294]
[1733789931292,37.04130294,217.08,217.0,37.04130294]
[1733789931492,37.04130294,217.14,217.01,37.04130294]
[1733789931493,37.04130294,217.09,217.01,37.04130294]
[1733789931718,37.04130294,217.06,216.98,37.04130294]
[1733789932021,37.04130294,217.07,217.0,37.04130294]
[1733789932187,37.04130294,217.07,216.95,0.69110896]
[1733789932390,37.04130294,217.08,217.0,37.04130294]
[1733789932787,37.04130294,217.05,216.97,37.04130294]
[1733789932983,10.0,217.12,216.95,37.04130294]
[1733789932984,37.04130294,217.03,216.95,37.04130294]
[1733789933309,36.54130294,217.03,217.0,312.0]
[1733789934037,36.54130294,217.03,216.87,37.04130294]
[1733789934038,37.04130294,217.01,216.87,37.04130294]
[1733789934240,37.04130294,216.97,216.9,37.04130294]
[1733789934396,37.04130294,216.97,216.82,0.69146221]
[1733789934397,37.04130294,216.96,216.88,37.04130294]
[1733789934596,37.04130294,216.96,216.87,37.04130294]
[1733789934815,37.04130294,216.92,216.85,37.04130294]
[1733789935014,37.04130294,216.86,216.79,37.04130294]
[1733789935438,37.04130294,216.93,216.85,37.04130294]
[1733789935598,37.04130294,216.93,216.86,37.04130294]
[1733789936512,37.04130294,216.94,216.87,37.04130294]
[1733789936712,37.04130294,216.93,216.87,0.12549]
[1733789936915,37.04130294,216.93,216.85,349.04130294]
[1733789937112,37.04130294,216.93,216.86,37.04130294]
[1733789937319,29.1073,217.02,216.85,349.04130294]
[1733789937320,37.04130294,216.92,216.85,349.04130294]
[1733789937520,37.04130294,216.9,216.83,37.04130294]
[1733789937726,7.9554,217.02,216.84,0.81711683]
[1733789938029,7.9554,217.02,216.85,0.12549]
[1733789938231,1.5804,217.02,216.87,0.12549]
[1733789938403,16.4657,217.1,216.89,20.12549]
[1733789938604,6.4657,217.1,216.91,20.25098]
[1733789938805,6.4657,217.1,216.93,20.25098]
[1733789939027,1.6375,217.11,216.96,20.0]
[1733789939225,1.6375,217.11,216.97,0.94199136]
[1733789939428,37.04130294,217.12,217.05,37.04130294]
[1733789939840,37.04130294,217.14,217.05,37.04130294]
[1733789940027,37.04130294,217.15,217.07,37.04130294]
[1733789940205,37.04130294,217.09,217.01,37.04130294]
[1733789940403,37.04130294,217.09,217.03,312.0]
[1733789940642,37.04130294,217.09,217.01,37.04130294]
[1733789941135,47.04130294,217.14,217.05,37.04130294]
[1733789941136,37.04130294,217.14,217.05,37.04130294]
[1733789941306,37.04130294,217.14,217.07,37.04130294]
[1733789941740,37.04130294,217.14,217.06,0.25098]
[1733789941912,1.6375,217.21,217.09,37.04130294]
[1733789941913,37.04130294,217.16,217.09,37.04130294]
[1733789942120,37.04130294,217.16,217.07,37.04130294]
[1733789942714,37.04130294,217.16,217.08,0.25098]
[1733789942911,37.04130294,217.18,217.1,0.25098]
[1733789943232,37.04130294,217.18,217.02,11.5196]
[1733789943233,37.04130294,217.16,217.07,37.04130294]
[1733789943440,37.04130294,217.12,217.04,0.12549]
[1733789943633,37.04130294,217.12,217.04,312.12549]
[1733789943834,37.04130294,217.12,217.06,0.12549]
[1733789944011,37.04130294,217.08,217.01,37.04130294]
[1733789944210,37.04130294,217.05,216.97,37.04130294]
[1733789944432,37.04130294,217.11,217.03,37.04130294]
[1733789944619,37.04130294,217.16,217.06,37.04130294]
[1733789944818,20.0,217.2,217.04,37.04130294]
[1733789944819,37.04130294,217.12,217.04,37.04130294]
[1733789945134,37.04130294,217.14,217.06,37.04130294]
[1733789945310,1.6375,217.21,217.09,37.04130294]
[1733789945513,6.4657,217.26,217.11,37.04130294]
[1733789945514,37.04130294,217.19,217.11,37.04130294]
[1733789945908,37.04130294,217.19,217.12,0.69069061]
[1733789946107,37.04130294,217.17,217.1,0.12549]
[1733789946335,37.04130294,217.19,217.11,37.73206572]
[1733789946546,37.04130294,217.23,217.14,0.25098]
[1733789946852,37.04130294,217.25,217.17,37.16679294]
[1733789947010,10.0,217.34,217.17,37.16679294]
[1733789947011,10.0,217.34,217.2,0.12549]
[1733789947333,37.04130294,217.25,217.16,0.12549]
[1733789947515,37.04130294,217.23,217.16,0.12549]
[1733789948125,37.04130294,217.25,217.18,0.12549]
[1733789948331,37.04130294,217.27,217.17,37.16679294]
[1733789948513,37.04130294,217.25,217.18,0.12549]
[1733789948938,37.04130294,217.25,217.15,37.04130294]
[1733789949131,37.61512934,217.36,217.12,37.04130294]
[1733789949132,37.04130294,217.22,217.12,37.04130294]
[1733789949634,37.04130294,217.22,217.14,37.04130294]
[1733789949839,37.04130294,217.26,217.16,37.04130294]
[1733789950012,1.1502,217.35,217.2,37.04130294]
[1733789950218,37.04130294,217.29,217.2,37.04130294]
[1733789950418,37.04130294,217.29,217.22,37.04130294]
[1733789950642,37.04130294,217.29,217.21,0.12549]
[1733789950937,37.04130294,217.32,217.24,0.12549]
[1733789951734,37.04130294,217.32,217.23,37.04130294]
[1733789952052,37.04130294,217.3,217.21,37.04130294]
[1733789952216,37.04130294,217.24,217.15,37.04130294]
[1733789952740,37.04130294,217.28,217.19,37.04130294]
[1733789952917,37.04130294,217.3,217.21,37.04130294]
[1733789953119,37.04130294,217.3,217.23,37.04130294]
[1733789953320,37.04130294,217.3,217.21,37.04130294]
[1733789953534,37.04130294,217.3,217.23,37.04130294]
[1733789953730,0.5738264,217.36,217.3,0.12549]
[1733789953924,37.61512934,217.36,217.27,37.04130294]
[1733789954449,37.61512934,217.36,217.29,37.04130294]
[1733789954612,0.5738264,217.36,217.31,37.04130294]
[1733789956043,0.5738264,217.36,217.25,37.04130294]
[1733789956044,37.04130294,217.34,217.25,37.04130294]
[1733789956246,37.04130294,217.3,217.23,37.04130294]
[1733789956549,37.04130294,217.3,217.18,6.509]
[1733789956550,37.04130294,217.3,217.21,37.04130294]
[1733789956756,37.04130294,217.23,217.13,37.04130294]
[1733789957067,37.04130294,217.26,217.17,37.04130294]
[1733789957348,1.5875,217.34,217.21,37.04130294]
[1733789957349,37.04130294,217.29,217.21,37.04130294]
[1733789958256,1.5875,217.34,217.18,0.69043925]
[1733789958257,37.04130294,217.27,217.19,37.04130294]
[1733789958557,37.04130294,217.29,217.21,37.04130294]
[1733789958844,1.5875,217.34,217.15,0.12549]
[1733789958845,37.04130294,217.31,217.23,37.04130294]
[1733789959053,37.04130294,217.29,217.21,37.04130294]
[1733789959263,37.04130294,217.23,217.15,37.04130294]
[1733789959854,37.04130294,217.21,217.13,37.04130294]
[1733789960150,37.04130294,217.17,217.09,37.04130294]
[1733789960449,37.04130294,217.26,217.16,37.04130294]
[1733789960655,37.04130294,217.28,217.17,0.69049291]
[1733789960830,37.04130294,217.28,217.2,37.04130294]
[1733789961155,37.04130294,217.3,217.22,37.04130294]
[1733789961355,37.04130294,217.33,217.25,37.04130294]
[1733789962474,37.04130294,217.27,217.19,37.04130294]
[1733789963050,37.04130294,217.27,217.2,0.25098]
[1733789963258,37.04130294,217.27,217.19,37.04130294]
[1733789963259,37.04130294,217.33,217.25,37.04130294]
[1733789964038,37.04130294,217.35,217.27,37.04130294]
[1733789964339,0.5738264,217.36,217.27,37.04130294]
[1733789964340,0.5738264,217.36,217.35,0.12549]
[1733789965045,0.5738264,217.36,217.35,0.8154468]
[1733789965453,0.5738264,217.36,217.35,0.9409368]
[1733789966153,0.5738264,217.36,217.34,37.04130294]
[1733789966469,0.5738264,217.36,217.3,11.5044]
[1733789966470,0.5738264,217.36,217.3,37.04130294]
[1733789966637,0.5738264,217.36,217.26,11.5068]
[1733789966638,0.5738264,217.36,217.34,37.04130294]
[1733789968777,0.5738264,217.36,217.35,0.12549]
[1733789969074,0.5738264,217.36,217.34,37.04130294]
[1733789970543,0.5738264,217.36,217.35,0.81543389]
[1733789970856,0.5738264,217.36,217.34,37.04130294]
[1733789971585,0.5738264,217.36,217.31,37.04130294]
[1733789973049,0.5738264,217.36,217.29,37.04130294]
[1733789973875,37.04130294,217.33,217.27,0.69014952]
[1733789974075,37.04130294,217.28,217.15,0.69015838]
[1733789974260,37.04130294,217.22,217.15,0.69015838]
[1733789974598,37.04130294,217.18,217.12,0.69057849]
[1733789974759,37.04130294,217.25,217.06,37.73199682]
[1733789974760,37.04130294,217.14,217.06,37.73199682]
[1733789974951,37.04130294,217.14,217.06,0.69069388]
[1733789975283,37.04130294,217.1,217.04,0.69078613]
[1733789975452,37.04130294,217.08,217.02,0.6909192]
[1733789975651,37.04130294,217.06,216.99,6.5886]
[1733789975852,37.04130294,217.1,217.01,37.04130294]
[1733789976088,37.04130294,217.1,217.02,0.69101797]
[1733789976568,37.04130294,217.13,217.05,37.04130294]
[1733789976878,37.04130294,217.15,217.07,37.04130294]
[1733789977576,37.04130294,217.15,217.08,0.69085198]
[1733789977782,37.04130294,217.13,217.05,37.04130294]
[1733789979281,37.04130294,217.1,216.98,0.69091365]
[1733789979473,11.5011,217.19,216.94,37.04130294]
[1733789979474,37.04130294,217.02,216.94,37.04130294]
[1733789979778,57.04130294,217.14,216.93,0.69100879]
[1733789979779,37.04130294,217.01,216.93,37.04130294]
[1733789980280,37.04130294,217.14,216.92,7.27983764]
[1733789980281,37.04130294,217.03,216.96,37.04130294]
[1733789980654,37.04130294,217.05,216.98,37.04130294]
[1733789980857,37.04130294,217.0,216.93,37.04130294]
[1733789981072,37.04130294,217.0,216.93,37.73257812]
[1733789981270,37.04130294,217.01,216.94,37.04130294]
[1733789981479,37.04130294,216.97,216.9,37.04130294]
[1733789981684,37.04130294,216.97,216.88,37.04130294]
[1733789981860,37.04130294,216.95,216.88,37.04130294]
[1733789982573,37.04130294,216.97,216.9,37.04130294]
[1733789982785,37.04130294,216.97,216.88,37.04130294]
[1733789983088,37.04130294,216.97,216.85,6.6214]
[1733789983089,37.04130294,216.93,216.84,37.73273199]
[1733789983463,37.04130294,216.93,216.85,37.04130294]
[1733789983948,37.04130294,216.93,216.85,349.04130294]
[1733789984158,37.04130294,216.91,216.85,312.0]
[1733789985279,37.04130294,216.89,216.82,37.04130294]
[1733789986052,37.04130294,216.93,216.86,37.04130294]
[1733789986278,37.04130294,216.96,216.87,37.73276628]
[1733789986670,37.04130294,216.94,216.87,0.69146334]
[1733789986873,37.04130294,216.9,216.8,0.69154341]
[1733789987073,37.04130294,216.86,216.78,43.66270294]
[1733789987274,37.04130294,216.81,216.72,0.69172854]
[1733789987473,37.04130294,216.79,216.71,37.04130294]
[1733789987720,37.04130294,216.74,216.7,0.2833472]
[1733789987875,37.04130294,216.72,216.7,0.2833472]
[1733789988274,37.04130294,216.74,216.7,0.2833472]
[1733789988474,37.04130294,216.78,216.7,0.2833472]
[1733789988912,37.04130294,216.76,216.7,0.2833472]
[1733789989874,37.04130294,216.74,216.7,0.2833472]
[1733789990098,37.04130294,216.76,216.7,0.2833472]
[1733789990969,37.04130294,216.75,216.7,0.2833472]
[1733789991169,37.04130294,216.79,216.71,37.16679294]
[1733789991370,37.04130294,216.81,216.73,37.04130294]
[1733789992119,37.04130294,216.83,216.76,0.12549]
[1733789992404,37.04130294,216.83,216.75,37.04130294]
[1733789992600,37.04130294,216.79,216.71,37.16679294]
[1733789992902,37.04130294,216.77,216.7,0.2833472]
[1733789993204,37.04130294,216.75,216.7,0.2833472]
[1733789993574,37.04130294,216.77,216.7,0.2833472]
[1733789994189,37.04130294,216.79,216.71,37.04130294]
[1733789994393,37.04130294,216.79,216.7,0.97540363]
[1733789994394,37.04130294,216.81,216.73,37.04130294]
[1733789994708,3.47782262,216.93,216.77,0.12549]
[1733789994709,37.04130294,216.85,216.77,0.12549]
[1733789994900,37.04130294,216.89,216.82,37.04130294]
[1733789995213,37.04130294,216.84,216.76,37.04130294]
[1733789995585,37.04130294,216.86,216.78,37.04130294]
[1733789995797,37.04130294,216.88,216.8,37.04130294]
[1733789995998,37.04130294,216.9,216.82,37.04130294]
[1733789996507,37.04130294,216.92,216.84,37.04130294]
[1733789998080,37.04130294,216.95,216.87,37.04130294]
[1733789998302,37.04130294,216.99,216.91,37.04130294]
[1733789998686,1.6501,217.01,216.88,0.6914018]
[1733789998687,37.04130294,216.97,216.89,37.04130294]
[1733789998987,37.04130294,216.93,216.85,37.04130294]
[1733789999499,37.04130294,216.98,216.9,37.04130294]
[1733790000021,37.04130294,216.96,216.89,37.04130294]
[1733790000185,37.04130294,217.0,216.92,37.04130294]
[1733790000598,37.04130294,216.99,216.92,37.04130294]
[1733790001188,37.04130294,216.98,216.9,37.73272583]
[1733790001388,37.04130294,217.03,216.85,37.04130294]
[1733790001389,37.04130294,216.92,216.85,37.04130294]
[1733790001593,37.04130294,216.93,216.85,37.04130294]
[1733790002212,37.04130294,216.93,216.86,37.04130294]
[1733790002608,37.04130294,217.0,216.91,37.04130294]
[1733790002823,37.04130294,216.95,216.87,37.04130294]
[1733790003123,37.04130294,216.95,216.88,37.04130294]
[1733790003508,37.04130294,216.96,216.88,37.04130294]
[1733790003713,37.04130294,216.94,216.86,37.04130294]
[1733790003916,48.19320294,217.03,216.86,37.04130294]
[1733790004105,1.6656,217.08,216.94,37.04130294]
[1733790004106,37.04130294,217.01,216.94,37.04130294]
[1733790004313,37.04130294,216.98,216.87,0.69153061]
[1733790004497,21.1517,217.07,216.86,20.0]
[1733790004498,10.0,217.05,216.86,20.0]
[1733790004698,10.0,217.03,216.84,0.69146853]
[1733790004918,20.0,217.05,216.84,0.69146853]
[1733790005227,10.0,217.05,216.84,0.69146853]
[1733790005613,10.0,217.05,216.91,312.0]
[1733790005614,37.04130294,216.95,216.91,312.0]
[1733790006025,37.04130294,216.96,216.91,312.0]
[1733790006325,37.04130294,217.03,216.81,37.04130294]
[1733790006326,37.04130294,216.95,216.87,37.04130294]
[1733790006499,37.04130294,216.94,216.87,37.04130294]
[1733790006702,37.04130294,216.93,216.85,37.04130294]
[1733790006925,10.0,217.0,216.84,37.04130294]
[1733790007304,37.04130294,216.93,216.86,37.04130294]